Workbook

Sheet Simulator
C3: LofD-Kampfsimulator
D5: by Voidhawk | F5: Version 1.3.3
D6: letzte Änderung: | E6: 2012-11-10
C8: Kampfboard
N9: Spieltyp
C10: Einheitenstatistiken | H10: Angreifer | K10: Verteidiger | P10: Versteckt
C11: Typ | D11: Einheitenname | E11: Angriff | F11: Ausdauer | G11: Reichweite | H11: Anzahl | J11: Verluste | K11: Anzahl | M11: Verluste | N11: Angriff | O11: Ausdauer | R11: Angriff | S11: Ausdauer | T11: Angriff | U11: Ausdauer | W11: UnitStats | AA11: AttackerStats | AC11: DefenderStats | AF11: Speicher
C12: Fusssoldaten | D12: =INDEX(Datenbasis!C16:I20,1,1) -> Krieger | E12: =INDEX(Datenbasis!C16:I20,1,2) -> 7 | F12: =INDEX(Datenbasis!C16:I20,1,3) -> 35 | G12: =INDEX(Datenbasis!C16:I20,1,4) -> 1 | H12: 0 | I12: 0 | J12: 0 | K12: 0 | L12: 0 | M12: 0 | N12: =INDEX(Datenbasis!C16:I20,1,2)*(1+attBoni) -> 9.1 | O12: =INDEX(Datenbasis!C16:I20,1,3)*(1+defBoni) -> 61.25 | R12: =E12*H12 -> 0 | S12: =F12*H12 -> 0 | T12: =N12*K12 -> 0 | U12: =O12*K12 -> 0 | V12: Name | W12: Angriff Basis | X12: Ausdauer Basis | Y12: Reichweite | Z12: KillID | AA12: Anzahl | AB12: Anzahl Temp | AC12: Anzahl | AD12: Anzahl Temp | AF12: Angreifer Anzahl | AG12: Verteidiger Anzahl | AH12: Angreifer Verluste | AI12: Verteidiger Verluste
D13: =INDEX(Datenbasis!C16:I20,2,1) -> Kurzschwertkämpfer | E13: =INDEX(Datenbasis!C16:I20,2,2) -> 9 | F13: =INDEX(Datenbasis!C16:I20,2,3) -> 60 | G13: =INDEX(Datenbasis!C16:I20,2,4) -> 1 | H13: 0 | J13: 0 | K13: 0 | M13: 0 | N13: =INDEX(Datenbasis!C16:I20,2,2)*(1+attBoni) -> 11.7 | O13: =INDEX(Datenbasis!C16:I20,2,3)*(1+defBoni) -> 105 | R13: =E13*H13 -> 0 | S13: =F13*H13 -> 0 | T13: =N13*K13 -> 0 | U13: =O13*K13 -> 0 | V13: =D12 -> Krieger | W13: 7 | X13: 35 | Y13: 1 | Z13: =Datenbasis!I16 -> 2 | AA13: =H12 -> 0 | AB13: 0 | AC13: =K12 -> 0 | AD13: 0 | AF13: 0 | AG13: 0 | AH13: 0 | AI13: 0
D14: =INDEX(Datenbasis!C16:I20,3,1) -> Lanzenträger | E14: =INDEX(Datenbasis!C16:I20,3,2) -> 15 | F14: =INDEX(Datenbasis!C16:I20,3,3) -> 45 | G14: =INDEX(Datenbasis!C16:I20,3,4) -> 2 | H14: 0 | J14: 0 | K14: 0 | M14: 0 | N14: =INDEX(Datenbasis!C16:I20,3,2)*(1+attBoni) -> 19.5 | O14: =INDEX(Datenbasis!C16:I20,3,3)*(1+defBoni) -> 78.75 | R14: =E14*H14 -> 0 | S14: =F14*H14 -> 0 | T14: =N14*K14 -> 0 | U14: =O14*K14 -> 0 | V14: Kurzschwertkämpfer | W14: 9 | X14: 60 | Y14: 1 | Z14: =Datenbasis!I17 -> 3 | AA14: =H13 -> 0 | AB14: 0 | AC14: =K13 -> 0 | AD14: 0 | AF14: 0 | AG14: 0 | AH14: -3 | AI14: 0
D15: =INDEX(Datenbasis!C16:I20,4,1) -> Schwertmeister | E15: =INDEX(Datenbasis!C16:I20,4,2) -> 30 | F15: =INDEX(Datenbasis!C16:I20,4,3) -> 120 | G15: =INDEX(Datenbasis!C16:I20,4,4) -> 1 | H15: 0 | J15: 0 | K15: 0 | M15: 0 | N15: =INDEX(Datenbasis!C16:I20,4,2)*(1+attBoni) -> 39 | O15: =INDEX(Datenbasis!C16:I20,4,3)*(1+defBoni) -> 210 | R15: =E15*H15 -> 0 | S15: =F15*H15 -> 0 | T15: =N15*K15 -> 0 | U15: =O15*K15 -> 0 | V15: Lanzenträger | W15: 15 | X15: 45 | Y15: 2 | Z15: =Datenbasis!I18 -> 10 | AA15: =H14 -> 0 | AB15: 0 | AC15: =K14 -> 0 | AD15: 0 | AF15: 0 | AG15: 0 | AH15: 0 | AI15: 0
D16: =INDEX(Datenbasis!C16:I20,5,1) -> Crusader | E16: =INDEX(Datenbasis!C16:I20,5,2) -> 40 | F16: =INDEX(Datenbasis!C16:I20,5,3) -> 180 | G16: =INDEX(Datenbasis!C16:I20,5,4) -> 1 | H16: 0 | J16: 0 | K16: 0 | M16: 0 | N16: =INDEX(Datenbasis!C16:I20,5,2)*(1+attBoni) -> 52 | O16: =INDEX(Datenbasis!C16:I20,5,3)*(1+defBoni) -> 315 | R16: =E16*H16 -> 0 | S16: =F16*H16 -> 0 | T16: =N16*K16 -> 0 | U16: =O16*K16 -> 0 | V16: Schwertmeister | W16: 30 | X16: 120 | Y16: 1 | Z16: =Datenbasis!I19 -> 6 | AA16: =H15 -> 0 | AB16: 0 | AC16: =K15 -> 0 | AD16: 0 | AF16: 0 | AG16: 0 | AH16: 0 | AI16: 0
V17: Crusader | W17: 40 | X17: 180 | Y17: 1 | Z17: =Datenbasis!I20 -> 7 | AA17: =H16 -> 0 | AB17: 0 | AC17: =K16 -> 0 | AD17: 0 | AF17: 0 | AG17: 0 | AH17: 0 | AI17: 0
C18: Reiterei | D18: =INDEX(Datenbasis!C21:I25,1,1) -> Leichte Kavallerie | E18: =INDEX(Datenbasis!C21:I25,1,2) -> 8 | F18: =INDEX(Datenbasis!C21:I25,1,3) -> 40 | G18: =INDEX(Datenbasis!C21:I25,1,4) -> 1 | H18: 0 | J18: 0 | K18: 0 | M18: 0 | N18: =INDEX(Datenbasis!C21:I25,1,2)*(1+attBoni) -> 10.4 | O18: =INDEX(Datenbasis!C21:I25,1,3)*(1+defBoni) -> 70 | R18: =E18*H18 -> 0 | S18: =F18*H18 -> 0 | T18: =N18*K18 -> 0 | U18: =O18*K18 -> 0 | V18: =D18 -> Leichte Kavallerie | W18: 8 | X18: 40 | Y18: 1 | Z18: =Datenbasis!I21 -> 4 | AA18: =H18 -> 0 | AB18: 0 | AC18: =K18 -> 0 | AD18: 0 | AF18: 0 | AG18: 3 | AH18: 0 | AI18: -2
D19: =INDEX(Datenbasis!C21:I25,2,1) -> Bogenreiter | E19: =INDEX(Datenbasis!C21:I25,2,2) -> 12 | F19: =INDEX(Datenbasis!C21:I25,2,3) -> 50 | G19: =INDEX(Datenbasis!C21:I25,2,4) -> 2 | H19: 0 | J19: 0 | K19: 0 | M19: 0 | N19: =INDEX(Datenbasis!C21:I25,2,2)*(1+attBoni) -> 15.6 | O19: =INDEX(Datenbasis!C21:I25,2,3)*(1+defBoni) -> 87.5 | R19: =E19*H19 -> 0 | S19: =F19*H19 -> 0 | T19: =N19*K19 -> 0 | U19: =O19*K19 -> 0 | V19: Bogenreiter | W19: 12 | X19: 50 | Y19: 2 | Z19: =Datenbasis!I22 -> 11 | AA19: =H19 -> 0 | AB19: 0 | AC19: =K19 -> 0 | AD19: 0 | AF19: 0 | AG19: 0 | AH19: 0 | AI19: 0
D20: =INDEX(Datenbasis!C21:I25,3,1) -> Schwere Kavallerie | E20: =INDEX(Datenbasis!C21:I25,3,2) -> 25 | F20: =INDEX(Datenbasis!C21:I25,3,3) -> 120 | G20: =INDEX(Datenbasis!C21:I25,3,4) -> 1 | H20: 0 | J20: 0 | K20: 0 | M20: 0 | N20: =INDEX(Datenbasis!C21:I25,3,2)*(1+attBoni) -> 32.5 | O20: =INDEX(Datenbasis!C21:I25,3,3)*(1+defBoni) -> 210 | R20: =E20*H20 -> 0 | S20: =F20*H20 -> 0 | T20: =N20*K20 -> 0 | U20: =O20*K20 -> 0 | V20: Schwere Kavallerie | W20: 25 | X20: 120 | Y20: 1 | Z20: =Datenbasis!I23 -> 5 | AA20: =H20 -> 0 | AB20: 0 | AC20: =K20 -> 0 | AD20: 0 | AF20: 0 | AG20: 0 | AH20: 0 | AI20: 0
D21: =INDEX(Datenbasis!C21:I25,4,1) -> Ritter | E21: =INDEX(Datenbasis!C21:I25,4,2) -> 38 | F21: =INDEX(Datenbasis!C21:I25,4,3) -> 170 | G21: =INDEX(Datenbasis!C21:I25,4,4) -> 1 | H21: 0 | J21: 0 | K21: 0 | M21: 0 | N21: =INDEX(Datenbasis!C21:I25,4,2)*(1+attBoni) -> 49.4 | O21: =INDEX(Datenbasis!C21:I25,4,3)*(1+defBoni) -> 297.5 | R21: =E21*H21 -> 0 | S21: =F21*H21 -> 0 | T21: =N21*K21 -> 0 | U21: =O21*K21 -> 0 | V21: Ritter | W21: 38 | X21: 170 | Y21: 1 | Z21: =Datenbasis!I24 -> 8 | AA21: =H21 -> 0 | AB21: 0 | AC21: =K21 -> 0 | AD21: 0 | AF21: 0 | AG21: 0 | AH21: 0 | AI21: 0
D22: =INDEX(Datenbasis!C21:I25,5,1) -> Ordensritter | E22: =INDEX(Datenbasis!C21:I25,5,2) -> 38 | F22: =INDEX(Datenbasis!C21:I25,5,3) -> 200 | G22: =INDEX(Datenbasis!C21:I25,5,4) -> 2 | H22: 0 | J22: 0 | K22: 0 | M22: 0 | N22: =INDEX(Datenbasis!C21:I25,5,2)*(1+attBoni) -> 49.4 | O22: =INDEX(Datenbasis!C21:I25,5,3)*(1+defBoni) -> 350 | R22: =E22*H22 -> 0 | S22: =F22*H22 -> 0 | T22: =N22*K22 -> 0 | U22: =O22*K22 -> 0 | V22: Ordensritter | W22: 38 | X22: 200 | Y22: 2 | Z22: =Datenbasis!I25 -> 12 | AA22: =H22 -> 0 | AB22: 0 | AC22: =K22 -> 0 | AD22: 0 | AF22: 0 | AG22: 0 | AH22: 0 | AI22: 0
V23: =D24 -> Speerwerfer | W23: 7 | X23: 20 | Y23: 3 | Z23: =Datenbasis!I26 -> 15 | AA23: =H24 -> 0 | AB23: 0 | AC23: =K24 -> 0 | AD23: 0 | AF23: 0 | AG23: 0 | AH23: 0 | AI23: 0
C24: Fernkampfeinheiten | D24: =INDEX(Datenbasis!C26:I30,1,1) -> Speerwerfer | E24: =INDEX(Datenbasis!C26:I30,1,2) -> 7 | F24: =INDEX(Datenbasis!C26:I30,1,3) -> 20 | G24: =INDEX(Datenbasis!C26:I30,1,4) -> 3 | H24: 0 | J24: 0 | K24: 0 | M24: 0 | N24: =INDEX(Datenbasis!C26:I30,1,2)*(1+attBoni) -> 9.1 | O24: =INDEX(Datenbasis!C26:I30,1,3)*(1+defBoni) -> 35 | R24: =E24*H24 -> 0 | S24: =F24*H24 -> 0 | T24: =N24*K24 -> 0 | U24: =O24*K24 -> 0 | V24: Bogenschütze | W24: 10 | X24: 28 | Y24: 3 | Z24: =Datenbasis!I27 -> 16 | AA24: =H25 -> 0 | AB24: 0 | AC24: =K25 -> 0 | AD24: 0 | AF24: 0 | AG24: 0 | AH24: 0 | AI24: 0
D25: =INDEX(Datenbasis!C26:I30,2,1) -> Bogenschütze | E25: =INDEX(Datenbasis!C26:I30,2,2) -> 10 | F25: =INDEX(Datenbasis!C26:I30,2,3) -> 28 | G25: =INDEX(Datenbasis!C26:I30,2,4) -> 3 | H25: 0 | J25: 0 | K25: 0 | M25: 0 | N25: =INDEX(Datenbasis!C26:I30,2,2)*(1+attBoni) -> 13 | O25: =INDEX(Datenbasis!C26:I30,2,3)*(1+defBoni) -> 49 | R25: =E25*H25 -> 0 | S25: =F25*H25 -> 0 | T25: =N25*K25 -> 0 | U25: =O25*K25 -> 0 | V25: Armbrustschütze | W25: 18 | X25: 44 | Y25: 4 | Z25: =Datenbasis!I28 -> 20 | AA25: =H26 -> 0 | AB25: 0 | AC25: =K26 -> 0 | AD25: 0 | AF25: 0 | AG25: 0 | AH25: 0 | AI25: 0
D26: =INDEX(Datenbasis!C26:I30,3,1) -> Armbrustschütze | E26: =INDEX(Datenbasis!C26:I30,3,2) -> 18 | F26: =INDEX(Datenbasis!C26:I30,3,3) -> 44 | G26: =INDEX(Datenbasis!C26:I30,3,4) -> 4 | H26: 0 | J26: 0 | K26: 0 | M26: 0 | N26: =INDEX(Datenbasis!C26:I30,3,2)*(1+attBoni) -> 23.4 | O26: =INDEX(Datenbasis!C26:I30,3,3)*(1+defBoni) -> 77 | R26: =E26*H26 -> 0 | S26: =F26*H26 -> 0 | T26: =N26*K26 -> 0 | U26: =O26*K26 -> 0 | V26: Langbogenschütze | W26: 32 | X26: 75 | Y26: 5 | Z26: =Datenbasis!I29 -> 23 | AA26: =H27 -> 0 | AB26: 0 | AC26: =K27 -> 0 | AD26: 0 | AF26: 0 | AG26: 0 | AH26: 0 | AI26: 0
D27: =INDEX(Datenbasis!C26:I30,4,1) -> Langbogenschütze | E27: =INDEX(Datenbasis!C26:I30,4,2) -> 32 | F27: =INDEX(Datenbasis!C26:I30,4,3) -> 75 | G27: =INDEX(Datenbasis!C26:I30,4,4) -> 5 | H27: 0 | J27: 0 | K27: 0 | M27: 0 | N27: =INDEX(Datenbasis!C26:I30,4,2)*(1+attBoni) -> 41.6 | O27: =INDEX(Datenbasis!C26:I30,4,3)*(1+defBoni) -> 131.25 | R27: =E27*H27 -> 0 | S27: =F27*H27 -> 0 | T27: =N27*K27 -> 0 | U27: =O27*K27 -> 0 | V27: Musketier | W27: 48 | X27: 120 | Y27: 4 | Z27: =Datenbasis!I30 -> 21 | AA27: =H28 -> 0 | AB27: 0 | AC27: =K28 -> 0 | AD27: 0 | AF27: 0 | AG27: 0 | AH27: 0 | AI27: 0
D28: =INDEX(Datenbasis!C26:I30,5,1) -> Musketier | E28: =INDEX(Datenbasis!C26:I30,5,2) -> 48 | F28: =INDEX(Datenbasis!C26:I30,5,3) -> 120 | G28: =INDEX(Datenbasis!C26:I30,5,4) -> 4 | H28: 0 | J28: 0 | K28: 0 | M28: 0 | N28: =INDEX(Datenbasis!C26:I30,5,2)*(1+attBoni) -> 62.4 | O28: =INDEX(Datenbasis!C26:I30,5,3)*(1+defBoni) -> 210 | R28: =E28*H28 -> 0 | S28: =F28*H28 -> 0 | T28: =N28*K28 -> 0 | U28: =O28*K28 -> 0 | V28: =D30 -> Spionageballon | W28: 0.1 | X28: 0.1 | Y28: 1 | Z28: =Datenbasis!I31 -> 9 | AA28: =H30 -> 0 | AB28: 0 | AC28: =K30 -> 0 | AD28: 0 | AF28: 0 | AG28: 0 | AH28: 0 | AI28: 0
V29: Belagerungsturm | W29: 5 | X29: 140 | Y29: 1 | Z29: =Datenbasis!I32 -> 1 | AA29: =H31 -> 0 | AB29: 0 | AC29: =K31 -> 0 | AD29: 0 | AF29: 0 | AG29: 0 | AH29: 0 | AI29: 0
C30: Maschinen | D30: =INDEX(Datenbasis!C31:I35,1,1) -> Spionageballon | E30: =INDEX(Datenbasis!C31:I35,1,2) -> 0.1 | F30: =INDEX(Datenbasis!C31:I35,1,3) -> 0.1 | G30: =INDEX(Datenbasis!C31:I35,1,4) -> 1 | H30: 0 | J30: 0 | K30: 0 | M30: 0 | N30: =INDEX(Datenbasis!C31:I35,1,2)*(1+attBoni) -> 0.13 | O30: =INDEX(Datenbasis!C31:I35,1,3)*(1+defBoni) -> 0.175 | R30: =E30*H30 -> 0 | S30: =F30*H30 -> 0 | T30: =N30*K30 -> 0 | U30: =O30*K30 -> 0 | V30: Katapult | W30: 70 | X30: 20 | Y30: 5 | Z30: =Datenbasis!I33 -> 22 | AA30: =H32 -> 0 | AB30: 0 | AC30: =K32 -> 0 | AD30: 0 | AF30: 0 | AG30: 0 | AH30: 0 | AI30: 0
D31: =INDEX(Datenbasis!C31:I35,2,1) -> Belagerungsturm | E31: =INDEX(Datenbasis!C31:I35,2,2) -> 5 | F31: =INDEX(Datenbasis!C31:I35,2,3) -> 140 | G31: =INDEX(Datenbasis!C31:I35,2,4) -> 1 | H31: 0 | J31: 0 | K31: 0 | M31: 0 | N31: =INDEX(Datenbasis!C31:I35,2,2)*(1+attBoni) -> 6.5 | O31: =INDEX(Datenbasis!C31:I35,2,3)*(1+defBoni) -> 245 | R31: =E31*H31 -> 0 | S31: =F31*H31 -> 0 | T31: =N31*K31 -> 0 | U31: =O31*K31 -> 0 | V31: Flugschiff | W31: 30 | X31: 120 | Y31: 3 | Z31: =Datenbasis!I34 -> 17 | AA31: =H33 -> 0 | AB31: 0 | AC31: =K33 -> 0 | AD31: 0 | AF31: 0 | AG31: 0 | AH31: 0 | AI31: 0
D32: =INDEX(Datenbasis!C31:I35,3,1) -> Katapult | E32: =INDEX(Datenbasis!C31:I35,3,2) -> 70 | F32: =INDEX(Datenbasis!C31:I35,3,3) -> 20 | G32: =INDEX(Datenbasis!C31:I35,3,4) -> 5 | H32: 0 | J32: 0 | K32: 0 | M32: 0 | N32: =INDEX(Datenbasis!C31:I35,3,2)*(1+attBoni) -> 91 | O32: =INDEX(Datenbasis!C31:I35,3,3)*(1+defBoni) -> 35 | R32: =E32*H32 -> 0 | S32: =F32*H32 -> 0 | T32: =N32*K32 -> 0 | U32: =O32*K32 -> 0 | V32: Holzpanzer | W32: 110 | X32: 350 | Y32: 2 | Z32: =Datenbasis!I35 -> 13 | AA32: =H34 -> 0 | AB32: 0 | AC32: =K34 -> 0 | AD32: 0 | AF32: 0 | AG32: 0 | AH32: 0 | AI32: 0
D33: =INDEX(Datenbasis!C31:I35,4,1) -> Flugschiff | E33: =INDEX(Datenbasis!C31:I35,4,2) -> 30 | F33: =INDEX(Datenbasis!C31:I35,4,3) -> 120 | G33: =INDEX(Datenbasis!C31:I35,4,4) -> 3 | H33: 0 | J33: 0 | K33: 0 | M33: 0 | N33: =INDEX(Datenbasis!C31:I35,4,2)*(1+attBoni) -> 39 | O33: =INDEX(Datenbasis!C31:I35,4,3)*(1+defBoni) -> 210 | R33: =E33*H33 -> 0 | S33: =F33*H33 -> 0 | T33: =N33*K33 -> 0 | U33: =O33*K33 -> 0 | V33: =D36 -> kleiner Turm (Kampf) | W33: 31 | X33: 105 | Y33: 2 | Z33: =Datenbasis!I36 -> 14 | AA33: - | AC33: =K36 -> 0 | AD33: 0 | AG33: 0 | AI33: 0
D34: =INDEX(Datenbasis!C31:I35,5,1) -> Holzpanzer | E34: =INDEX(Datenbasis!C31:I35,5,2) -> 110 | F34: =INDEX(Datenbasis!C31:I35,5,3) -> 350 | G34: =INDEX(Datenbasis!C31:I35,5,4) -> 2 | H34: 0 | J34: 0 | K34: 0 | M34: 0 | N34: =INDEX(Datenbasis!C31:I35,5,2)*(1+attBoni) -> 143 | O34: =INDEX(Datenbasis!C31:I35,5,3)*(1+defBoni) -> 612.5 | R34: =E34*H34 -> 0 | S34: =F34*H34 -> 0 | T34: =N34*K34 -> 0 | U34: =O34*K34 -> 0 | V34: Verteidigungsturm (Kampf) | W34: 50 | X34: 175 | Y34: 3 | Z34: =Datenbasis!I37 -> 18 | AA34: - | AC34: =K37 -> 0 | AD34: 0 | AG34: 0 | AI34: 0
R35: Summe | S35: Summe | V35: Wehrturm (Kampf) | W35: 75 | X35: 400 | Y35: 3 | Z35: =Datenbasis!I38 -> 19 | AA35: - | AC35: =K38 -> 0 | AD35: 0 | AG35: 0 | AI35: 0
C36: Verteidigungsgebäude | D36: =INDEX(Datenbasis!C36:I39,1,1) -> kleiner Turm (Kampf) | E36: =INDEX(Datenbasis!C36:I39,1,2)*POWER(1+Datenbasis!D7,K47) -> 31 | F36: =INDEX(Datenbasis!C36:I39,1,3)*POWER(1+Datenbasis!D6,K46) -> 105 | G36: =INDEX(Datenbasis!C36:I39,1,4) -> 2 | H36: N.A. | K36: 0 | M36: 0 | N36: =INDEX(Datenbasis!C36:I39,1,2)*POWER(1+Datenbasis!D7,K47)*(1+attBoni) -> 40.3 | O36: =INDEX(Datenbasis!C36:I39,1,3)*POWER(1+Datenbasis!D6,K46)*(1+defBoni) -> 183.75 | R36: =SUM(R12:R34) -> 0 | S36: =SUM(S12:S34) -> 0 | T36: =N36*K36 -> 0 | U36: =O36*K36 -> 0 | V36: Magierturm (Kampf) | W36: 300 | X36: 160 | Y36: 5 | Z36: =Datenbasis!I39 -> 24 | AA36: wallIndex | AC36: =K39 -> 0 | AD36: 0 | AG36: 0 | AI36: 0
D37: =INDEX(Datenbasis!C36:I39,2,1) -> Verteidigungsturm (Kampf) | E37: =INDEX(Datenbasis!C36:I39,2,2)*POWER(1+Datenbasis!D7,K47) -> 50 | F37: =INDEX(Datenbasis!C36:I39,2,3)*POWER(1+Datenbasis!D6,K46) -> 175 | G37: =INDEX(Datenbasis!C36:I39,2,4) -> 3 | K37: 0 | M37: 0 | N37: =INDEX(Datenbasis!C36:I39,2,2)*POWER(1+Datenbasis!D7,K47)*(1+attBoni) -> 65 | O37: =INDEX(Datenbasis!C36:I39,2,3)*POWER(1+Datenbasis!D6,K46)*(1+defBoni) -> 306.25 | T37: 0 | U37: 0 | V37: =D42 -> keine Burg | W37: =P42 -> 0 | X37: =Q42 -> 0 | Y37: =G42 -> 0 | Z37: =INDEX(Datenbasis!C46:I47,Datenbasis!F8,7) -> 99 | AA37: =Datenbasis!F8 -> 1 | AC37: =K42 -> 0 | AD37: 0 | AG37: 1
D38: =INDEX(Datenbasis!C36:I39,3,1) -> Wehrturm (Kampf) | E38: =INDEX(Datenbasis!C36:I39,3,2)*POWER(1+Datenbasis!D7,K47) -> 75 | F38: =INDEX(Datenbasis!C36:I39,3,3)*POWER(1+Datenbasis!D6,K46) -> 400 | G38: =INDEX(Datenbasis!C36:I39,3,4) -> 3 | K38: 0 | M38: 0 | N38: =INDEX(Datenbasis!C36:I39,3,2)*POWER(1+Datenbasis!D7,K47)*(1+attBoni) -> 97.5 | O38: =INDEX(Datenbasis!C36:I39,3,3)*POWER(1+Datenbasis!D6,K46)*(1+defBoni) -> 700 | T38: 0 | U38: 0 | V38: =D40 -> Wehrmauer (Kampf) | W38: =P40 -> 140 | X38: =Q40 -> 300 | Y38: =G40 -> 0 | Z38: =INDEX(Datenbasis!C40:I43,Datenbasis!G6,7) -> 0 | AA38: =Datenbasis!F6 -> 13 | AC38: =K40 -> 1 | AD38: 0 | AG38: 1
D39: =INDEX(Datenbasis!C36:I39,4,1) -> Magierturm (Kampf) | E39: =INDEX(Datenbasis!C36:I39,4,2)*POWER(1+Datenbasis!D7,K47) -> 300 | F39: =INDEX(Datenbasis!C36:I39,4,3)*POWER(1+Datenbasis!D6,K46) -> 160 | G39: =INDEX(Datenbasis!C36:I39,4,4) -> 5 | K39: 0 | M39: 0 | N39: =INDEX(Datenbasis!C36:I39,4,2)*POWER(1+Datenbasis!D7,K47)*(1+attBoni) -> 390 | O39: =INDEX(Datenbasis!C36:I39,4,3)*POWER(1+Datenbasis!D6,K46)*(1+defBoni) -> 280 | T39: 0 | U39: 0 | V39: =D41 -> kein Burggraben | W39: =N41 -> 0 | X39: =Q41 -> 0 | Y39: =G41 -> 0 | Z39: =INDEX(Datenbasis!C44:I45,Datenbasis!F7,7) -> 99 | AA39: =Datenbasis!F7 -> 1 | AC39: =K41 -> 0 | AG39: 1
D40: =INDEX(Datenbasis!C40:I43,Datenbasis!G6,1) -> Wehrmauer (Kampf) | E40: =INDEX(Datenbasis!C40:I43,Datenbasis!G6,5)*INDEX(Datenbasis!C56:D68,Datenbasis!F6,2) -> 0.3 | F40: =INDEX(Datenbasis!C40:I43,Datenbasis!G6,6)*INDEX(Datenbasis!C56:D68,Datenbasis!F6,2) -> 0.75 | G40: =INDEX(Datenbasis!C40:I43,Datenbasis!G6,4) -> 0 | K40: =IF(Datenbasis!G6=1,0,1) -> 1 | N40: =P40*(1+attBoni) -> 182 | O40: =Q40*(1+defBoni) -> 525 | P40: =INDEX(Datenbasis!C40:I43,Datenbasis!G6,2)*POWER(1+Datenbasis!D7,K47) -> 140 | Q40: =INDEX(Datenbasis!C40:I43,Datenbasis!G6,3)*POWER(1+Datenbasis!D6,K46) -> 300 | T40: 182 | U40: 525 | AA40: attUnitsLeft | AB40: =SUM(AB13:AB32) -> 0 | AC40: defUnitsLeft | AD40: =SUM(AD13:AD37) -> 0 | AF40: CarryAtt | AG40: 28
D41: =INDEX(Datenbasis!C44:I45,Datenbasis!F7,1) -> kein Burggraben | E41: =INDEX(Datenbasis!C44:I45,Datenbasis!F7,5) -> 0 | F41: =INDEX(Datenbasis!C44:I45,Datenbasis!F7,6) -> 0 | G41: =INDEX(Datenbasis!C44:I45,Datenbasis!F7,4) -> 0 | K41: =Datenbasis!F7-1 -> 0 | N41: =P41*(1+attBoni) -> 0 | O41: =Q41*(1+defBoni) -> 0 | P41: =INDEX(Datenbasis!C44:I45,Datenbasis!F7,2)*POWER(1+Datenbasis!D7,K47) -> 0 | Q41: =INDEX(Datenbasis!C44:I45,Datenbasis!F7,3)*POWER(1+Datenbasis!D6,K46) -> 0 | T41: 0 | U41: 0 | V41: CarryAtt | W41: 0 | AF41: CarryDef | AG41: 12
D42: =IF(Datenbasis!F8=2,Datenbasis!C47,Datenbasis!C46) -> keine Burg | E42: =INDEX(Datenbasis!C46:I47,Datenbasis!F8,5) -> 0 | F42: =INDEX(Datenbasis!C46:I47,Datenbasis!F8,6) -> 0 | G42: =INDEX(Datenbasis!C46:I47,Datenbasis!F8,4) -> 0 | K42: =Datenbasis!F8-1 -> 0 | N42: =P42*(1+attBoni) -> 0 | O42: =Q42*(1+defBoni) -> 0 | P42: =INDEX(Datenbasis!C46:I47,Datenbasis!F8,2)*POWER(1+Datenbasis!D7,K47) -> 0 | Q42: =INDEX(Datenbasis!C46:I47,Datenbasis!F8,3)*POWER(1+Datenbasis!D6,K46) -> 0 | T42: 0 | U42: 0 | V42: CarryDef | W42: 0 | AF42: FightCount | AG42: 0
P43: =SUM(E40:E42) -> 0.3 | Q43: =SUM(F40:F42) -> 0.75 | T43: Summe | U43: Summe | V43: FightCount | W43: 0 | AF43: wallDestroyed | AG43: TRUE
C44: Statistik | E44: Angreifer | F44: vs. | G44: Verteidiger | H44: Forschung | K44: Stufe | M44: Forschungsgebiet | T44: =SUM(T12:T42) -> 182 | U44: =SUM(U12:U42) -> 525 | V44: wallDestroyed | W44: FALSE
D45: Gesamtstärke | E45: =R36 -> 0 | F45: vs. | G45: =T44 -> 182 | K45: 0 | M45: =Datenbasis!B5 -> Wirtschaft Ausdauer
D46: Gesamtausdauer | E46: =S36 -> 0 | F46: vs. | G46: =U44 -> 525 | K46: 0 | M46: =Datenbasis!B6 -> Militärgebäude Ausdauer
E47: - | F47: 0 Schlacht(en) | G47: - | K47: 0 | M47: =Datenbasis!B7 -> Militärgebäude Angriff

Sheet Datenbasis
B2: Globale Variablen
B4: Forschungsboni | E4: Auswahl
B5: Wirtschaft Ausdauer | D5: 0.2 | E5: Spieltyp | F5: 1
B6: Militärgebäude Ausdauer | D6: 0.15 | E6: Mauer | F6: 13 | G6: =IF(F6<2,1,IF(F6<5,2,IF(F6<9,3,4))) -> 4
B7: Militärgebäude Angriff | D7: 0.15 | E7: BG | F7: 1
B8: Spieltypen | E8: Burg | F8: 1
B9: Typen | C9: Angriffsstärke | D9: Gebäudefaktor
B10: Kampf | C10: 1 | D10: 1
B11: Wirtschaft | C11: 1 | D11: 1
B12: Diplomatie | C12: 1 | D12: 1
L13: Grundwerte Übersicht
B14: Einheiten & Gebäude (Werte nach Spielauswahl)
B15: Typ | C15: Name | D15: Angriff 100% | E15: Ausdauer | F15: Reichweite | G15: Angriffsboni | H15: Vert.-Boni | I15: ID | L15: Einheiten / Gebäude | N15: Angriff | O15: Ausdauer | P15: Reichweite | Q15: Angriffs- bonus | R15: Ausdauer- bonus
B16: Fusssoldaten | C16: =M17 -> Krieger | D16: =N17 -> 7 | E16: =O17 -> 35 | F16: =P17 -> 1 | G16: =Q17 -> 0 | H16: =R17 -> 0 | I16: =L17 -> 2 | L16: Kill-Priorität | M16: Name
C17: Kurzschwertkämpfer | D17: =N18 -> 9 | E17: 60 | F17: 1 | G17: 0 | H17: 0 | I17: 3 | L17: 2 | M17: Krieger | N17: 7 | O17: 35 | P17: 1 | Q17: 0 | R17: 0
C18: Lanzenträger | D18: =N19 -> 15 | E18: 45 | F18: 2 | G18: 0 | H18: 0 | I18: 10 | L18: 3 | M18: Kurzschwertkämpfer | N18: 9 | O18: 60 | P18: 1 | Q18: 0 | R18: 0
C19: Schwertmeister | D19: =N20 -> 30 | E19: 120 | F19: 1 | G19: 0 | H19: 0 | I19: 6 | L19: 10 | M19: Lanzenträger | N19: 15 | O19: 45 | P19: 2 | Q19: 0 | R19: 0
C20: Crusader | D20: =N21 -> 40 | E20: 180 | F20: 1 | G20: 0 | H20: 0 | I20: 7 | L20: 6 | M20: Schwertmeister | N20: 30 | O20: 120 | P20: 1 | Q20: 0 | R20: 0
B21: Reiterei | C21: Leichte Kavallerie | D21: =N22 -> 8 | E21: 40 | F21: 1 | G21: 0 | H21: 0 | I21: 4 | L21: 7 | M21: Crusader | N21: 40 | O21: 180 | P21: 1 | Q21: 0 | R21: 0
C22: Bogenreiter | D22: =N23 -> 12 | E22: 50 | F22: 2 | G22: 0 | H22: 0 | I22: 11 | L22: 4 | M22: Leichte Kavallerie | N22: 8 | O22: 40 | P22: 1 | Q22: 0 | R22: 0
C23: Schwere Kavallerie | D23: =N24 -> 25 | E23: 120 | F23: 1 | G23: 0 | H23: 0 | I23: 5 | L23: 11 | M23: Bogenreiter | N23: 12 | O23: 50 | P23: 2 | Q23: 0 | R23: 0
C24: Ritter | D24: =N25 -> 38 | E24: 170 | F24: 1 | G24: 0 | H24: 0 | I24: 8 | L24: 5 | M24: Schwere Kavallerie | N24: 25 | O24: 120 | P24: 1 | Q24: 0 | R24: 0
C25: Ordensritter | D25: =N26 -> 38 | E25: 200 | F25: 2 | G25: 0 | H25: 0 | I25: 12 | L25: 8 | M25: Ritter | N25: 38 | O25: 170 | P25: 1 | Q25: 0 | R25: 0
B26: Fernkampfeinheiten | C26: Speerwerfer | D26: =N27 -> 7 | E26: 20 | F26: 3 | G26: 0 | H26: 0 | I26: 15 | L26: 12 | M26: Ordensritter | N26: 38 | O26: 200 | P26: 2 | Q26: 0 | R26: 0
C27: Bogenschütze | D27: =N28 -> 10 | E27: 28 | F27: 3 | G27: 0 | H27: 0 | I27: 16 | L27: 15 | M27: Speerwerfer | N27: 7 | O27: 20 | P27: 3 | Q27: 0 | R27: 0
C28: Armbrustschütze | D28: =N29 -> 18 | E28: 44 | F28: 4 | G28: 0 | H28: 0 | I28: 20 | L28: 16 | M28: Bogenschütze | N28: 10 | O28: 28 | P28: 3 | Q28: 0 | R28: 0
C29: Langbogenschütze | D29: =N30 -> 32 | E29: 75 | F29: 5 | G29: 0 | H29: 0 | I29: 23 | L29: 20 | M29: Armbrustschütze | N29: 18 | O29: 44 | P29: 4 | Q29: 0 | R29: 0
C30: Musketier | D30: =N31 -> 48 | E30: 120 | F30: 4 | G30: 0 | H30: 0 | I30: 21 | L30: 23 | M30: Langbogenschütze | N30: 32 | O30: 75 | P30: 5 | Q30: 0 | R30: 0
B31: Maschinen | C31: Spionageballon | D31: =N32 -> 0.1 | E31: 0.1 | F31: 1 | G31: 0 | H31: 0 | I31: 9 | L31: 21 | M31: Musketier | N31: 48 | O31: 120 | P31: 4 | Q31: 0 | R31: 0
C32: Belagerungsturm | D32: =N33 -> 5 | E32: 140 | F32: 1 | G32: 0 | H32: 0 | I32: 1 | L32: 9 | M32: Spionageballon | N32: 0.1 | O32: 0.1 | P32: 1 | Q32: 0 | R32: 0
C33: Katapult | D33: =N34 -> 70 | E33: 20 | F33: 5 | G33: 0 | H33: 0 | I33: 22 | L33: 1 | M33: Belagerungsturm | N33: 5 | O33: 140 | P33: 1 | Q33: 0 | R33: 0
C34: Flugschiff | D34: =N35 -> 30 | E34: 120 | F34: 3 | G34: 0 | H34: 0 | I34: 17 | L34: 22 | M34: Katapult | N34: 70 | O34: 20 | P34: 5 | Q34: 0 | R34: 0
C35: Holzpanzer | D35: =N36 -> 110 | E35: 350 | F35: 2 | G35: 0 | H35: 0 | I35: 13 | L35: 17 | M35: Flugschiff | N35: 30 | O35: 120 | P35: 3 | Q35: 0 | R35: 0
B36: Militärgebäude | C36: =INDEX(L37:R39,IF(F5=1,3,F5-1),2) -> kleiner Turm (Kampf) | D36: =INDEX(L37:R39,IF(F5=1,3,F5-1),3) -> 31 | E36: =INDEX(L37:R39,IF(F5=1,3,F5-1),4) -> 105 | F36: =INDEX(L37:R39,IF(F5=1,3,F5-1),5) -> 2 | G36: =INDEX(L37:R39,IF(F5=1,3,F5-1),6) -> 0 | H36: =INDEX(L37:R39,IF(F5=1,3,F5-1),7) -> 0 | I36: =INDEX(L37:R39,IF(F5=1,3,F5-1),1) -> 14 | L36: 13 | M36: Holzpanzer | N36: 110 | O36: 350 | P36: 2 | Q36: 0 | R36: 0
C37: =INDEX(L40:R42,IF(F5=1,3,F5-1),2) -> Verteidigungsturm (Kampf) | D37: =INDEX(L40:R42,IF(F5=1,3,F5-1),3) -> 50 | E37: =INDEX(L40:R42,IF(F5=1,3,F5-1),4) -> 175 | F37: =INDEX(L40:R42,IF(F5=1,3,F5-1),5) -> 3 | G37: =INDEX(L40:R42,IF(F5=1,3,F5-1),6) -> 0 | H37: =INDEX(L40:R42,IF(F5=1,3,F5-1),7) -> 0 | I37: =INDEX(L40:R42,IF(F5=1,3,F5-1),1) -> 18 | L37: 14 | M37: kleiner Turm (Wirtschaft) | N37: 20 | O37: 175 | P37: 2 | Q37: 0 | R37: 0
C38: =INDEX(L43:R45,IF(F5=1,3,F5-1),2) -> Wehrturm (Kampf) | D38: =INDEX(L43:R45,IF(F5=1,3,F5-1),3) -> 75 | E38: =INDEX(L43:R45,IF(F5=1,3,F5-1),4) -> 400 | F38: =INDEX(L43:R45,IF(F5=1,3,F5-1),5) -> 3 | G38: =INDEX(L43:R45,IF(F5=1,3,F5-1),6) -> 0 | H38: =INDEX(L43:R45,IF(F5=1,3,F5-1),7) -> 0 | I38: =INDEX(L43:R45,IF(F5=1,3,F5-1),1) -> 19 | L38: 14 | M38: kleiner Turm (Diplomatie) | N38: 20 | O38: 175 | P38: 2 | Q38: 0 | R38: 0
C39: =INDEX(L46:R48,IF(F5=1,3,F5-1),2) -> Magierturm (Kampf) | D39: =INDEX(L46:R48,IF(F5=1,3,F5-1),3) -> 300 | E39: =INDEX(L46:R48,IF(F5=1,3,F5-1),4) -> 160 | F39: =INDEX(L46:R48,IF(F5=1,3,F5-1),5) -> 5 | G39: =INDEX(L46:R48,IF(F5=1,3,F5-1),6) -> 0 | H39: =INDEX(L46:R48,IF(F5=1,3,F5-1),7) -> 0 | I39: =INDEX(L46:R48,IF(F5=1,3,F5-1),1) -> 24 | L39: 14 | M39: kleiner Turm (Kampf) | N39: 31 | O39: 105 | P39: 2 | Q39: 0 | R39: 0
C40: =M49 -> keine Mauer | D40: =N49 -> 0 | E40: =O49 -> 0 | F40: 0 | G40: 0 | H40: 0 | I40: =L49 -> 99 | L40: 18 | M40: Verteidigungsturm (Wirtschaft) | N40: 40 | O40: 300 | P40: 3 | Q40: 0 | R40: 0
C41: =INDEX(L50:R52,IF(F5=1,3,F5-1),2) -> Palisadenzaun (Kampf) | D41: =INDEX(L50:R52,IF(F5=1,3,F5-1),3) -> 20 | E41: =INDEX(L50:R52,IF(F5=1,3,F5-1),4) -> 75 | F41: =INDEX(L50:R52,IF(F5=1,3,F5-1),5) -> 0 | G41: =INDEX(L50:R52,IF(F5=1,3,F5-1),6) -> 0.1 | H41: =INDEX(L50:R52,IF(F5=1,3,F5-1),7) -> 0.25 | I41: =INDEX(L50:R52,IF(F5=1,3,F5-1),1) -> 0 | L41: 18 | M41: Verteidigungsturm (Diplomatie) | N41: 40 | O41: 350 | P41: 3 | Q41: 0 | R41: 0
C42: =INDEX(L53:R55,IF(F5=1,3,F5-1),2) -> Mauer (Kampf) | D42: =INDEX(L53:R55,IF(F5=1,3,F5-1),3) -> 60 | E42: =INDEX(L53:R55,IF(F5=1,3,F5-1),4) -> 150 | F42: =INDEX(L53:R55,IF(F5=1,3,F5-1),5) -> 0 | G42: =INDEX(L53:R55,IF(F5=1,3,F5-1),6) -> 0.2 | H42: =INDEX(L53:R55,IF(F5=1,3,F5-1),7) -> 0.5 | I42: =INDEX(L53:R55,IF(F5=1,3,F5-1),1) -> 0 | L42: 18 | M42: Verteidigungsturm (Kampf) | N42: 50 | O42: 175 | P42: 3 | Q42: 0 | R42: 0
C43: =INDEX(L56:R58,IF(F5=1,3,F5-1),2) -> Wehrmauer (Kampf) | D43: =INDEX(L56:R58,IF(F5=1,3,F5-1),3) -> 140 | E43: =INDEX(L56:R58,IF(F5=1,3,F5-1),4) -> 300 | F43: =INDEX(L56:R58,IF(F5=1,3,F5-1),5) -> 0 | G43: =INDEX(L56:R58,IF(F5=1,3,F5-1),6) -> 0.3 | H43: =INDEX(L56:R58,IF(F5=1,3,F5-1),7) -> 0.75 | I43: =INDEX(L56:R58,IF(F5=1,3,F5-1),1) -> 0 | L43: 19 | M43: Wehrturm (Wirtschaft) | N43: 50 | O43: 600 | P43: 3 | Q43: 0 | R43: 0
C44: =M59 -> kein Burggraben | D44: =N59 -> 0 | E44: =O59 -> 0 | F44: =P59 -> 0 | G44: =Q59 -> 0 | H44: =R59 -> 0 | I44: =L59 -> 99 | L44: 19 | M44: Wehrturm (Diplomatie) | N44: 50 | O44: 550 | P44: 3 | Q44: 0 | R44: 0
C45: =M60 -> Burggraben | D45: =N60 -> 0 | E45: =O60 -> 0 | F45: =P60 -> 0 | G45: =Q60 -> 0.25 | H45: =R60 -> 0.25 | I45: =L60 -> 99 | L45: 19 | M45: Wehrturm (Kampf) | N45: 75 | O45: 400 | P45: 3 | Q45: 0 | R45: 0
C46: =M61 -> keine Burg | D46: =N61 -> 0 | E46: =O61 -> 0 | F46: =P61 -> 0 | G46: =Q61 -> 0 | H46: =R61 -> 0 | I46: =L61 -> 99 | L46: 24 | M46: Magierturm (Wirtschaft) | N46: 200 | O46: 200 | P46: 5 | Q46: 0 | R46: 0
C47: =INDEX(L62:R64,F5,2) -> Burg (Wirtschaft) | D47: =INDEX(L62:R64,F5,3) -> 50 | E47: =INDEX(L62:R64,IF(F5=1,3,F5),4) -> 3000 | F47: =INDEX(L62:R64,IF(F5=1,3,F5),5) -> 5 | G47: =INDEX(L62:R64,IF(F5=1,3,F5),6) -> 0.25 | H47: =INDEX(L62:R64,IF(F5=1,3,F5),7) -> 0.25 | I47: =INDEX(L62:R64,IF(F5=1,3,F5),1) -> 25 | L47: 24 | M47: Magierturm (Diplomatie) | N47: 250 | O47: 150 | P47: 5 | Q47: 0 | R47: 0
L48: 24 | M48: Magierturm (Kampf) | N48: 300 | O48: 160 | P48: 5 | Q48: 0 | R48: 0
L49: 99 | M49: keine Mauer | N49: 0 | O49: 0 | P49: 0 | Q49: 0 | R49: 0
L50: 0 | M50: Palisadenzaun (Wirtschaft) | N50: 20 | O50: 300 | P50: 0 | Q50: 0.1 | R50: 0.25
L51: 0 | M51: Palisadenzaun (Diplo) | N51: 20 | O51: 150 | P51: 0 | Q51: 0.1 | R51: 0.25
L52: 0 | M52: Palisadenzaun (Kampf) | N52: 20 | O52: 75 | P52: 0 | Q52: 0.1 | R52: 0.25
L53: 0 | M53: Mauer (Wirtschaft) | N53: 40 | O53: 500 | P53: 0 | Q53: 0.2 | R53: 0.5
B54: Beschädigungsstufen der Mauern | L54: 0 | M54: Mauer (Diplo) | N54: 40 | O54: 300 | P54: 0 | Q54: 0.2 | R54: 0.5
B55: lfd. Nr. | C55: MauerStufen | D55: Wirkung | L55: 0 | M55: Mauer (Kampf) | N55: 60 | O55: 150 | P55: 0 | Q55: 0.2 | R55: 0.5
B56: 1 | C56: keine Mauer | D56: 0 | L56: 0 | M56: Wehrmauer (Wirtschaft) | N56: 60 | O56: 1000 | P56: 0 | Q56: 0.3 | R56: 0.75
B57: 2 | C57: Palisade 40% | D57: 0.4 | L57: 0 | M57: Wehrmauer (Diplo) | N57: 60 | O57: 400 | P57: 0 | Q57: 0.3 | R57: 0.75
B58: 3 | C58: Palisade 75% | D58: 0.75 | L58: 0 | M58: Wehrmauer (Kampf) | N58: 140 | O58: 300 | P58: 0 | Q58: 0.3 | R58: 0.75
B59: 4 | C59: Palisade 100% | D59: 1 | L59: 99 | M59: kein Burggraben | N59: 0 | O59: 0 | P59: 0 | Q59: 0 | R59: 0
B60: 5 | C60: Mauer 40% | D60: 0.4 | L60: 99 | M60: Burggraben | N60: 0 | O60: 0 | P60: 0 | Q60: 0.25 | R60: 0.25
B61: 6 | C61: Mauer 65% | D61: 0.65 | L61: 99 | M61: keine Burg | N61: 0 | O61: 0 | P61: 0 | Q61: 0 | R61: 0
B62: 7 | C62: Mauer 85% | D62: 0.85 | L62: 25 | M62: Burg (Wirtschaft) | N62: 50 | O62: 3000 | P62: 5 | Q62: 0.25 | R62: 0.25
B63: 8 | C63: Mauer 100% | D63: 1 | L63: 25 | M63: Burg (Diplomatie) | N63: 25 | O63: 1000 | P63: 5 | Q63: 0.25 | R63: 0.25
B64: 9 | C64: Wehrm. 30% | D64: 0.3 | L64: 25 | M64: Burg (Kampf) | N64: 50 | O64: 3000 | P64: 5 | Q64: 0.25 | R64: 0.25
B65: 10 | C65: Wehrm. 55% | D65: 0.55
B66: 11 | C66: Wehrm. 75% | D66: 0.75
B67: 12 | C67: Wehrm. 90% | D67: 0.9
B68: 13 | C68: Wehrm. 100% | D68: 1
B69: 1 | C69: kein Burggraben | D69: 0
B70: 2 | C70: Burggraben | D70: 1
B71: 1 | C71: keine Burg | D71: 0
B72: 2 | C72: Burg | D72: 0.25
